Cogmind - Beta 16 @@@ ROGUE MODE // 2025.12.29 @ 22:18:25 Player: AlexGTheGamer Result: Destroyed by G-47 Trooper with Particle Gun Performance ------------- Evolutions (1) 500 Regions Visited (3) 600 Robots Destroyed (11) 55 Value Destroyed (273) 273 Prototype IDs (0) 0 Alien Tech Used (0) 0 Bonus (82) 82 TOTAL SCORE: 1510 Bonus ------- Follower Combat Kills 95 Friendly Fire -13 Cogmind --------- Core Integrity 0/400 Matter 297/300 Energy 96/100 System Corruption 0% Temperature Cool (35) Movement Walking (260) Ox2 Location -9/Materials Parts ------- > --- POWER (1) -------- (None) > --- PROPULSION (4) --- Aluminum Leg Aluminum Leg Aluminum Leg > --- UTILITY (2) ------ Huge Storage Unit > --- WEAPON (2) ------- Small Laser Light Assault Rifle > --- INVENTORY (25) --- Ion Engine Light Treads Seismic Detector ECM Suite ECM Suite Weapon Shielding Weapon Shielding Shield Generator Shield Generator Spread Laser Peak State ------------ > --- POWER ------------ Ion Engine > --- PROPULSION ------- Light Treads Light Treads Aluminum Leg > --- UTILITY ---------- Huge Storage Unit Medium Matter Pod > --- WEAPON ----------- Medium Laser Medium Laser > --- INVENTORY -------- Light Ion Engine Particle Gun Welding Torch [Rating: 8] Favorites ----------- Power Ion Engine Engine Ion Engine Propulsion Light Treads Treads Light Treads Leg Aluminum Leg Utility Huge Storage Unit Storage Huge Storage Unit Weapon Medium Laser Energy Gun Medium Laser Ballistic Gun Light Assault Rifle Build | -11 -10 -10 -9 ------- Run | Yrd Mat Min Mat Slots Evolved 2 | . . . 2 Power . | . . . . Propulsion 2 | . . . 2 Utility . | . . . . Weapon . | . . . . Parts Attached 17 | 6 . 2 9 Power 2 | 1 . . 1 Engine 2 | 1 . . 1 Core . | . . . . Reactor . | . . . . Propulsion 6 | 2 . . 4 Treads 2 | 2 . . . Leg 4 | . . . 4 Wheel . | . . . . Hover . | . . . . Flight . | . . . . Utility 3 | 1 . 2 . Device . | . . . . Storage 3 | 1 . 2 . Processor . | . . . . Hackware . | . . . . Protection . | . . . . Artifact . | . . . . Weapon 6 | 2 . . 4 Energy Gun 4 | 2 . . 2 Energy Cannon . | . . . . Ballistic Gun 1 | . . . 1 Ballistic Cannon . | . . . . Launcher . | . . . . Special Weapon 1 | . . . 1 Impact Weapon . | . . . . Slashing Weapon . | . . . . Piercing Weapon . | . . . . Special Melee Weapon . | . . . . Unidentified Prototypes . | . . . . Parts Lost 10 | . . . 10 Power 2 | . . . 2 Propulsion 3 | . . . 3 Utility 1 | . . . 1 Weapon 4 | . . . 4 Highest Loss Streak 9 | . . . 9 To Critical Strikes . | . . . . Average Backups 3 | 1 1 2 4 Power . | . 1 1 . Propulsion . | . . . . Utility 1 | . . . 2 Weapon . | . . . . Tool/Special . | . . . . Unused Backups 8 | . . . 8 Power 1 | . . . 1 Propulsion 1 | . . . 1 Utility 5 | . . . 5 Weapon 1 | . . . 1 Tool/Special . | . . . . Average Slot Usage (%) 78 | . 85 98 64 Engine 9 | . 14 14 5 Treads 16 | . 28 28 6 Leg 10 | . . . 19 Storage 16 | . 14 26 12 Energy Gun 20 | . 28 28 13 Ballistic Gun 4 | . . . 7 Peak Build Rating 8 | 6 6 7 8 Average Rating 6 | 4 6 6 5 On Entrance 4 | . 6 6 7 Avg Prop Armor Cover (%) . | . . . . Naked Turns . | . . . . Heaviest Build 91 | 14 14 91 91 Greatest Support 40 | 40 40 40 40 Greatest Overweight (x) 2 | . . 2 2 Average Overweight (x) 1 | . . 1 1 Largest Inventory Capacity 25 | 8 8 25 25 Average Capacity 19 | 6 8 23 21 Most Carried 10 | 5 2 4 10 Average Carried 3 | 1 1 2 4 Final Capacity 25 | 8 8 25 25 Final Carried 10 | 1 2 4 10 Class Distribution -------------------- 70% | Mutant 29% | Scavenger-Mutant Dominant Class ---------------- Mutant | -10/Materials Mutant | -10/Mines Scavenger-Mutant | -9/Materials Resources | -11 -10 -10 -9 ----------- Run | Yrd Mat Min Mat Matter Collected 443 | 142 . 196 105 Remotely . | . . . . Salvage Created 347 | . . 55 292 Parts 26 | . . 7 19 Haulers Intercepted . | . . . . Recyclers Shooed . | . . . . Parts Field Recycled . | . . . . Retrieved Matter . | . . . . Parts Self-Destructed . | . . . . Prevented . | . . . . Parts Restored . | . . . . Kills | -11 -10 -10 -9 ------- Run | Yrd Mat Min Mat Combat Hostiles Destroyed 10 | . . 1 9 Guns 10 | . . 1 9 Classes Destroyed 4 | . . 2 2 Builder 1 | . . 1 . Swarmer 4 | . . . 4 Grunt 5 | . . 1 4 Sentry 1 | . . . 1 Best Kill Streak 4 | . . 1 4 Combat Bots Only 4 | . . 1 4 Max Kills in Single Turn 1 | . . 1 1 Gunslinging . | . . . . Exploded . | . . . . Melee . | . . . . Uniques/NPCs Destroyed . | . . . . Combat | -11 -10 -10 -9 -------- Run | Yrd Mat Min Mat Hostile Shots Fired 182 | . . 7 175 Missed 36 | . . 4 32 Hits 146 | . . 3 143 Projectile 146 | . . 3 143 Critical Strikes 4 | . . . 4 Damage Taken 1450 | . . 30 1420 Core 419 | . . 10 409 Absorbed by Shields . | . . . . Core Remaining (%) 98 | 100 . 96 . Volleys Fired 45 | . . 6 39 Largest 2 | . . 2 2 Hottest 100 | . . 100 100 Shots Fired 73 | . . 12 61 Gun 73 | . . 12 61 Cannon . | . . . . Launcher . | . . . . Special . | . . . . Kinetic 23 | . . . 23 Thermal 50 | . . 12 38 Explosive . | . . . . Electromagnetic . | . . . . Robot Hit Streak 5 | . . 5 4 Robot Miss Streak 4 | . . 2 4 Penetration Max . | . . . . Secondary Targets 2 | . . . 2 Max Gunslinging Chain 1 | . . . 1 Shots Hit Robots 41 | . . 8 33 Core Hits 20 | . . 6 14 Critical Kills . | . . . . Critical Parts Destroyed . | . . . . Critical Strikes 1 | . . . 1 Burn 1 | . . . 1 Melee Attacks . | . . . . Impact . | . . . . Slashing . | . . . . Piercing . | . . . . Sneak Attacks . | . . . . Combat Hostiles . | . . . . Follow-up Attacks . | . . . . Damage Inflicted 494 | . . 111 383 Guns 494 | . . 111 383 Cannons . | . . . . Explosions . | . . . . Melee . | . . . . Ramming . | . . . . Kinetic 115 | . . . 115 Thermal 379 | . . 111 268 Explosive . | . . . . Electromagnetic . | . . . . Impact . | . . . . Slashing . | . . . . Piercing . | . . . . Highest Corruption . | . . . . Average Corruption . | . . . . Corruption Purged . | . . . . Corruption Blocked . | . . . . Overload Shots . | . . . . Overflow Damage . | . . . . Projectiles . | . . . . Explosions . | . . . . Melee . | . . . . Knockbacks . | . . . . Impact . | . . . . Kinetic . | . . . . Secondary . | . . . . Self-Inflicted Damage . | . . . . Shots . | . . . . Rammed . | . . . . Targets Rammed . | . . . . Kicked . | . . . . Crushed . | . . . . Highest Temperature 440 | . . 117 440 Average Temperature 132 | . . 40 161 Received Heat Transfer 396 | . . 18 378 Effects 1 | . . . 1 Shutdowns 1 | . . . 1 Siege Activations . | . . . . Martial Activations . | . . . . Shielding Activations . | . . . . Robots Disrupted . | . . . . Combat Hostiles . | . . . . Robots Corrupted . | . . . . Combat Hostiles . | . . . . Parts Fried . | . . . . Impact Corruptions . | . . . . Robots Melted . | . . . . Combat Hostiles . | . . . . Parts Melted 1 | . . . 1 Heat Transferred 1112 | . . 333 779 Parts Sabotaged . | . . . . Parts Stolen . | . . . . Parts Stripped . | . . . . Power Chain Reactions . | . . . . Alert | -11 -10 -10 -9 ------- Run | Yrd Mat Min Mat Maximum Alert Level . | . . . . Low Security (%) 100 | 100 100 100 100 Level 1 . | . . . . Level 2 . | . . . . Level 3 . | . . . . Level 4 . | . . . . Level 5 . | . . . . High Security . | . . . . Max Security . | . . . . Peak Influence 70 | . . 62 70 Initial . | . . . . Average 15 | . . 22 16 Influence Increases 327 | . . 117 210 Destroy 0b10 Robot/C 260 | . . 80 180 Destroy 0b10 Robot/NC 5 | . . 5 . Destroy Leader 50 | . . 20 30 Allied During Kill 12 | . . 12 . Influence Decreases 327 | . . 117 210 Time Decay 267 | . . 117 150 Lost Part 60 | . . . 60 Squads Dispatched . | . . . . Investigation . | . . . . Extermination . | . . . . Reinforcement . | . . . . Assault . | . . . . Garrison . | . . . . Intercept . | . . . . Searches Triggered . | . . . . Construction Impeded . | . . . . Haulers Reinforced . | . . . . Active Scanning Responses . | . . . . Cargo Convoy Interrupts . | . . . . Stealth | -11 -10 -10 -9 --------- Run | Yrd Mat Min Mat Distress Signals . | . . . . Communications Jammed . | . . . . Distress Signals . | . . . . Times Spotted 17 | . . 2 15 Peak Tracking Total 7 | . . 2 7 Tactical Retreats . | . . . . Traps | -11 -10 -10 -9 ------- Run | Yrd Mat Min Mat Traps Triggered . | . . . . Indirectly . | . . . . Trap Hack Attempts . | . . . . Triggered . | . . . . Disarmed . | . . . . Reprogrammed . | . . . . Reused . | . . . . Traps Extracted . | . . . . Installed . | . . . . Triggered . | . . . . Machines | -11 -10 -10 -9 ---------- Run | Yrd Mat Min Mat Machines Disabled . | . . . . Max in Single Turn . | . . . . Machines Repaired . | . . . . Machines Dismantled . | . . . . Machines Sabotaged . | . . . . Overloaded Fab Kills . | . . . . Hacking | -11 -10 -10 -9 --------- Run | Yrd Mat Min Mat Machines Accessed 1 | . . . 1 Terminals 1 | . . . 1 Fabricators . | . . . . Repair Stations . | . . . . Recycling Units . | . . . . Scanalyzers . | . . . . Garrison Access . | . . . . Total Hacks 3 | . . . 3 Successful 1 | . . . 1 Failed 2 | . . . 2 Catastrophic . | . . . . Database Lockouts . | . . . . Manual . | . . . . Terminals 3 | . . . 3 Fabricators . | . . . . Repair Stations . | . . . . Recycling Units . | . . . . Scanalyzers . | . . . . Garrison Access . | . . . . Terminal Hacks 1 | . . . 1 Alert Level 1 | . . . 1 Fabricator Hacks . | . . . . Repair Station Hacks . | . . . . Recycling Unit Hacks . | . . . . Scanalyzer . | . . . . Garrison Access Hacks . | . . . . Unauthorized Hacks . | . . . . Terminals . | . . . . Fabricators . | . . . . Repair Stations . | . . . . Recycling Units . | . . . . Scanalyzers . | . . . . Garrison Access . | . . . . Data Cores Recovered . | . . . . Used . | . . . . Hacking Detections 1 | . . . 1 Full Trace Events . | . . . . Feedback Events . | . . . . Feedback Blocked . | . . . . Robot Schematics Acquired . | . . . . Robots Built . | . . . . Authchips . | . . . . Time . | . . . . Total Robot Build Rating . | . . . . Part Schematics Acquired . | . . . . Parts Built . | . . . . Authchips . | . . . . Time . | . . . . Total Part Build Rating . | . . . . Part Studies Acquired . | . . . . Parts Repaired . | . . . . Time . | . . . . Parts Recycled . | . . . . Recycled Matter . | . . . . Retrieved Matter . | . . . . Retrieved Components . | . . . . Parts Scanalyzed . | . . . . Part Schematics Acquired . | . . . . Parts Damaged . | . . . . Bothacking | -11 -10 -10 -9 ------------ Run | Yrd Mat Min Mat Used RIF Installer . | . . . . Robots Hacked . | . . . . Non-combat . | . . . . Combat . | . . . . Robot Hacks Applied . | . . . . Relay Couplers Released . | . . . . Fabnet Peak Effective % . | . . . . Robots Rewired . | . . . . Allies Hacked . | . . . . Hacks Repelled . | . . . . Allies | -11 -10 -10 -9 -------- Run | Yrd Mat Min Mat Total Allies 2 | . . 2 . Largest Group 2 | . . 2 2 Highest-Rated Group 42 | . . 42 42 Highest-Rated Ally 31 | . . 31 31 Total Orders . | . . . . Ally Attacks 9 | . . 5 4 Total Damage 187 | . . 104 83 Kills 3 | . . 3 . Allies Corrupted . | . . . . Allies Melted . | . . . . Intel | -11 -10 -10 -9 ------- Run | Yrd Mat Min Mat Active Infowar (turns) . | . . . . Robot Analysis Total . | . . . . Derelict Logs Recovered . | . . . . Drone Launches . | . . . . Drone Recoveries . | . . . . Exploration | -11 -10 -10 -9 ------------- Run | Yrd Mat Min Mat Turns Passed 1165 | 53 171 335 606 Spaces Moved 440 | 34 107 104 195 Core 16 | 12 . . 4 Treads 272 | 22 107 104 39 Legs 152 | . . . 152 Wheels . | . . . . Hover . | . . . . Flight . | . . . . Fastest Speed 50 | 50 160 160 50 Average Speed 225 | 121 160 290 244 Slowest Speed 320 | 160 160 320 320 Overloaded Moves . | . . . . Propulsion Burnouts . | . . . . Robots Hopped . | . . . . Potential Cave-ins . | . . . . Cave-ins Triggered . | . . . . Exploration Rate (%) 14 | 3 14 19 21 Regions Visited 3 Branch Regions 1 Pre-discovered Areas . | . . . . Known Exits Taken . | . . . . Unknown Exits Taken 3 | 1 1 1 . Scrap Searched 1 | . . 1 . Spaces Dug . | . . . . Terrain Destroyed . | . . . . Melee . | . . . . Projectile . | . . . . AOE . | . . . . Terrain Rammed . | . . . . Walls Destroyed . | . . . . Machines Disabled . | . . . . Actions | -11 -10 -10 -9 --------- Run | Yrd Mat Min Mat Total 548 | 46 107 126 269 Wait 15 | . . 10 5 Move 437 | 33 106 103 195 Hop . | . . . . Pick Up 29 | 7 1 4 17 Fast Attach . | . . . . Attach 18 | 6 . 1 11 Detach . | . . . . Swap 1 | . . 1 . Drop 3 | . . 1 2 Fire 45 | . . 6 39 Melee . | . . . . Ram . | . . . . Kick . | . . . . Crush . | . . . . Escape Stasis . | . . . . Rewire . | . . . . Trap . | . . . . Miscellaneous . | . . . . Route ------- -11/Scrapyard -10/Materials -10/Mines -9/Materials History --------- Turn | Location | Event 36 | -11/Scrapyard | Discovered new exit (range 12) 54 | -11/Scrapyard | Entered Materials 147 | -10/Materials | Discovered new exit (range 15) 225 | -10/Materials | Entered Mines 277 | -10/Mines | Discovered new exit (range 8) 300 | -10/Mines | Build established: Mutant 560 | -10/Mines | Entered Materials 560 | -9/Materials | Accompanied by 2 allies 560 | -9/Materials | Evolved 2 slots: Propulsion x2 565 | -9/Materials | Led the pair of lost Derelicts to an unsafe place 735 | -9/Materials | Core integrity fell below 50% 752 | -9/Materials | Core integrity fell below 20% 783 | -9/Materials | Lost 9 parts (1p3n1u4w) 1139 | -9/Materials | Build established: Scavenger-Mutant 1166 | -9/Materials | Destroyed by G-47 Trooper with Particle Gun Last Messages --------------- 00890_ Lgt. Ion Engine destroyed. 00894_ Y-45 Defender destroyed. 00904_ Acquired ECM Suite. 00908_ Acquired Weapon Shielding. 00910_ R-06 Scavenger collects Lgt. Treads. 00911_ Acquired ECM Suite. 00914_ R-06 Scavenger collects Beam Rifle. 00915_ Acquired Weapon Shielding. 00917_ R-06 Scavenger collects Heat Sink. 00934_ Acquired Spread Laser. 00935_ Acquired 2 matter. 00977_ Connecting with Terminal... 00977_ Current location identified: Materials 01104_ Acquired Shield Generator. 01113_ Acquired Seismic Detector. 01117_ Acquired Shield Generator. 01123_ Connecting with Terminal... >>Alert(Check) Current Alert Level: Low Security 01166_ Critical hit (Burn: +37). Map ----- +----------------------------------------------------+ | ?????????????????????????????????????????????????? | | ?????????????????????????????????????????????????? | | ??????????? ???????????????????????????????????? | | ??????????? "??????????????????????????????????? | | ??????????? ^""?????????????????????????????????? | | ??????????? ""?? +?????????????????????????????? | | ??????????# ?? #?????????????????????????????? | | ??????????# """ #?????????????????????????????? | | ??????????# "" #?????????????????????????????? | | ??????????# "" #?????????????????????????????? | | ??????????/ " #?????????????????????????????? | | ??????????# #?????????????????????????????? | | ?????????## +?????????????????????????????? | | ########## ########???????????????????????? | | # #???????????????????????? | | # #???????????????????????? | | # """ #???????????????????????? | | ###### ### # """ #???????????????????????? | | ######+#####/###### """ #???????????????????????? | | # #? ????????????????????????? | | #"" ####+########??????????????????? | | #"" / +??????????????????? | | #"T #######g#####??????????????????? | | #"" #?????# #??????????????????????? | | #"" #?????# #??????????????????????? | | # #?????#@#??????????????????????? | | # #?????#g#??????????????????????? | | ########## #?????g ??????????????????????? | | ?????????##########?????###??????????????????????? | | ?????????????????????????????????????????????????? | | ?????????????????????????????????????????????????? | | ?????????????????????????????????????????????????? | | ?????????????????????????????????????????????????? | | ?????????????????????????????????????????????????? | | ?????????????????????????????????????????????????? | | | | | | | | | | | | | | | | | | | | | | | | | | | | | | | +----------------------------------------------------+ Best States ------------- Heat Dissipation 28 Energy Generation 10 Energy Capacity 250 Matter Stores 358 Matter Capacity 400 Sight Range 16 Terrain Scan Density 10 Evasion (%) 55 Recoil Reduction 2 Item Schematics ----------------- None Robot Schematics ------------------ None Fabricated ------------ Nothing Repaired ---------- Nothing Studied --------- None Alien Tech Used ----------------- None Achievements -------------- Hydra Challenges ------------ None Game ------ Seed HypercooledSpikedFlightbrick Manual? 0 Play Time 00:14:54 Cumulative 8.7 hours Start 2025.12.29 @ 22:06:09 End 2025.12.29 @ 22:18:25 Sessions 1 Manual Loads 0 Difficulty Rogue Special Mode None Game No. 21 Rogue 21 Adventurer 0 Explorer 0 Win Type - Total 0 Types 0/0/0/0/0/0/0/0/0/0 Lore% 2 Gallery% 7 Achievement% 6 Wizard Run 0 Options --------- Layout 1 ASCII 0 Keyboard 0 Movement Mouse Keybinds 0 Fullscreen 1 Font 16/SmallcapsGlow Map View 55x38 Zoom Use 0% Tactical HUD 1 Map Filters NONE Filters NONE Steam 1 RUN: 441f8080-0a78-4a8b-a2e2-b60a39826111